fUST/lending_fUST_20250708
["ID","MTS","AMOUNT","RATE_DAILY","PERIOD"]
[370379119,1751987449246,-1680.8,0.00019452,2]
[370379120,1751987449257,-3263.91,0.00019452,2]
[370379121,1751987449267,-460.0,0.00019452,2]
[370379122,1751987449276,-460.0,0.00019452,2]
[370379123,1751987449286,-460.0,0.00019452,2]
[370379124,1751987449295,-825.63,0.00019452,2]
[370379125,1751987449305,-460.0,0.00019452,2]
[370379126,1751987449314,-1917.38,0.00019452,2]
[370379127,1751987449323,-460.0,0.00019452,2]
[370379128,1751987449332,-460.0,0.00019452,2]
[370379129,1751987449342,-464.95034664,0.00019452,2]
[370379130,1751987449353,-460.0,0.00019452,2]
[370379131,1751987449363,-460.0,0.00019452,2]
[370379132,1751987449372,-460.0,0.00019452,2]
[370379133,1751987449382,-460.0,0.00019452,2]
[370379134,1751987449392,-450.0,0.00019452,2]
[370379135,1751987449401,-1349.37,0.00019452,2]
[370379136,1751987449411,-460.0,0.00019452,2]
[370379137,1751987449420,-460.0,0.00019452,2]
[370379138,1751987449430,-460.0,0.00019452,2]
[370379139,1751987449440,-321.77122286,0.00019452,2]
[370379140,1751987449450,-7169.81,0.00019452,2]
[370379141,1751987449459,-460.0,0.00019452,2]
[370379142,1751987449469,-3212.24,0.00019452,2]
[370379143,1751987449478,-460.0,0.00019452,2]
[370379144,1751987449487,-764.25,0.00019452,2]
[370379145,1751987449497,-460.0,0.00019452,2]
[370379146,1751987449507,-282.67584232,0.00019452,2]
[370379147,1751987449516,-460.0,0.00019452,2]
[370379148,1751987449526,-975.12,0.00019452,2]
[370379149,1751987449536,-460.0,0.00019452,2]
[370379150,1751987449545,-460.0,0.00019452,2]
[370379151,1751987449555,-3732.02,0.00019452,2]
[370379152,1751987449564,-460.0,0.00019452,2]
[370379153,1751987449574,-460.0,0.00019452,2]
[370379154,1751987449583,-460.0,0.00019452,2]
[370379155,1751987449592,-517.2,0.00019452,2]
[370379156,1751987449602,-1124.04,0.00019452,2]
[370379157,1751987449611,-460.0,0.00019452,2]
[370379158,1751987449621,-460.0,0.00019452,2]
[370379159,1751987449630,-460.0,0.00019452,2]
[370379160,1751987449640,-446.74609819,0.00019469,2]
[370379161,1751987449651,-500.0,0.00019473,2]
[370379162,1751987449661,-500.0,0.00019473,2]
[370379163,1751987449672,-500.0,0.00019473,2]
[370379164,1751987449684,-257.31718571,0.00019473,2]
[370379165,1751987449693,-500.0,0.00019473,2]
[370379166,1751987449703,-500.0,0.00019473,2]
[370379167,1751987449712,-500.0,0.00019473,2]
[370379168,1751987449722,-500.0,0.00019473,2]
[370379169,1751987449732,-600.0,0.00019473,2]
[370379170,1751987449741,-500.0,0.00019473,2]
[370379171,1751987449751,-587.87715135,0.00019473,2]
[370379172,1751987449761,-500.0,0.00019473,2]
[370379173,1751987449770,-151.0,0.000195,2]
[370379174,1751987449779,-151.0,0.000195,2]
[370379175,1751987449789,-159.66946847,0.00019513,2]
[370379176,1751987449799,-207.4,0.00019513,2]
[370379177,1751987449808,-151.0,0.00019513,2]
[370379178,1751987449818,-151.0,0.00019513,2]
[370379179,1751987449827,-151.0,0.00019513,2]
[370379180,1751987449837,-690.642,0.00019513,2]
[370379181,1751987449846,-151.0,0.00019513,2]
[370379182,1751987449856,-151.0,0.00019513,2]
[370379183,1751987449866,-500.0,0.00019513,2]
[370379184,1751987449875,-500.0,0.00019513,2]
[370379185,1751987449884,-151.0,0.00019513,2]
[370379186,1751987449894,-151.0,0.00019513,2]
[370379187,1751987449904,-500.0,0.00019513,2]
[370379188,1751987449914,-151.0,0.00019513,2]
[370379189,1751987449923,-500.0,0.00019513,2]
[370379190,1751987449932,-151.0,0.00019513,2]
[370379191,1751987449941,-151.0,0.00019513,2]
[370379192,1751987449951,-500.0,0.00019513,2]
[370379193,1751987449960,-151.0,0.00019513,2]
[370379194,1751987449970,-500.0,0.00019513,2]
[370379195,1751987449979,-151.0,0.00019513,2]
[370379196,1751987449989,-500.0,0.00019513,2]
[370379197,1751987449998,-500.0,0.00019513,2]
[370379198,1751987450008,-500.0,0.00019513,2]
[370379199,1751987450018,-500.0,0.00019513,2]
[370379200,1751987450027,-500.0,0.00019513,2]
[370379201,1751987450037,-151.0,0.00019513,2]
[370379202,1751987450046,-561.54135328,0.00019513,2]
[370379203,1751987450056,-151.0,0.00019513,2]
[370379204,1751987450065,-25000.0,0.00019513,2]
[370379205,1751987450074,-23148.12208278,0.00019513,2]
[370379206,1751987450084,-716.195754,0.00019568,2]
[370379207,1751987450093,-151.0,0.000196,2]
[370379208,1751987450104,-151.0,0.000196,2]
[370379209,1751987450113,-151.0,0.000196,2]
[370379210,1751987450122,-151.0,0.000196,2]
[370379211,1751987450131,-485.3583714,0.00019616,2]
[370379212,1751987450141,-742.6949969,0.00019623,2]
[370379213,1751987450151,-655.18760459,0.00019678,2]
[370379214,1751987450161,-1319.22748375,0.00019698,2]
[370379215,1751987450172,-151.0,0.000197,2]
[370379216,1751987450183,-151.0,0.000197,2]
[370379217,1751987450193,-1000.0,0.00019721,2]
[370379218,1751987450203,-1000.0,0.00019721,2]
[370379219,1751987450213,-1000.0,0.00019721,2]
[370379220,1751987450223,-1000.0,0.00019721,2]
[370379221,1751987450232,-500.0,0.00019721,2]
[370379222,1751987450242,-1000.0,0.00019721,2]
[370379223,1751987450253,-454.40572668,0.00019721,2]
[370379224,1751987450263,-500.0,0.00019721,2]
[370379225,1751987450273,-314.5323604,0.00019721,2]
[370379226,1751987450284,-1000.0,0.00019721,2]
[370379227,1751987450294,-491.04253568,0.00019721,2]
[370379228,1751987450304,-1000.0,0.00019721,2]
[370379229,1751987450314,-500.0,0.00019725,2]
[370379230,1751987450323,-460.0,0.00019726,2]
[370379231,1751987450332,-460.0,0.00019726,2]
[370379232,1751987450342,-460.0,0.00019726,2]
[370379233,1751987450354,-460.0,0.00019726,2]
[370379234,1751987450363,-460.0,0.00019726,2]
[370379235,1751987450373,-366.61941739,0.00019726,2]
[370379236,1751987450382,-460.0,0.00019726,2]
[370379237,1751987450392,-400.29693125,0.00019726,2]
[370379238,1751987450402,-460.0,0.00019726,2]
[370379239,1751987450412,-384.35112441,0.00019726,2]
[370379240,1751987450423,-520.37,0.00019726,2]
[370379241,1751987450432,-460.0,0.00019726,2]
[370379242,1751987450442,-460.0,0.00019726,2]
[370379243,1751987450453,-460.0,0.00019726,2]
[370379244,1751987450463,-460.0,0.00019726,2]
[370379245,1751987450474,-460.0,0.00019726,2]
[370379246,1751987450485,-359.45927333,0.00019726,2]
[370379247,1751987450494,-460.0,0.00019726,2]
[370379248,1751987450504,-460.0,0.00019726,2]
[370379249,1751987450721,-644.05,0.00019726,2]
[370379250,1751987450732,-460.0,0.00019726,2]
[370379251,1751987450742,-460.0,0.00019726,2]
[370379252,1751987450751,-460.0,0.00019726,2]
[370379253,1751987450760,-460.0,0.00019726,2]
[370379254,1751987450769,-460.0,0.00019726,2]
[370379255,1751987450779,-460.0,0.00019726,2]
[370379256,1751987450788,-460.0,0.00019726,2]
[370379257,1751987450798,-460.0,0.00019726,2]
[370379258,1751987450807,-460.0,0.00019726,2]
[370379259,1751987450817,-460.0,0.00019726,2]
[370379260,1751987450827,-460.0,0.00019726,2]
[370379261,1751987450837,-508.54,0.00019726,2]
[370379262,1751987450846,-460.0,0.00019726,2]
[370379263,1751987450856,-460.0,0.00019726,2]
[370379264,1751987450865,-404.73949645,0.00019726,2]
[370379265,1751987450874,-460.0,0.00019726,2]
[370379266,1751987450884,-330.83240672,0.00019726,2]
[370379267,1751987450894,-460.0,0.00019726,2]
[370379268,1751987450903,-460.0,0.00019726,2]
[370379269,1751987450912,-460.0,0.00019726,2]
[370379270,1751987450922,-460.0,0.00019726,2]
[370379271,1751987450931,-470.00000005,0.00019726,2]
[370379272,1751987450940,-460.0,0.00019726,2]
[370379273,1751987450949,-460.0,0.00019726,2]
[370379274,1751987450958,-460.0,0.00019726,2]
[370379275,1751987450967,-460.0,0.00019726,2]
[370379276,1751987450977,-590.3,0.00019726,2]
[370379277,1751987450986,-460.0,0.00019726,2]
[370379278,1751987450995,-460.0,0.00019726,2]
[370379279,1751987451004,-460.0,0.00019726,2]
[370379280,1751987451014,-460.0,0.00019726,2]
[370379281,1751987451023,-460.0,0.00019726,2]
[370379282,1751987451032,-460.0,0.00019726,2]
[370379283,1751987451041,-460.0,0.00019726,2]
[370379284,1751987451050,-460.0,0.00019726,2]
[370379285,1751987451059,-526.63457769,0.00019726,2]
[370379286,1751987451068,-460.0,0.00019726,2]
[370379287,1751987451078,-460.0,0.00019726,2]
[370379288,1751987451087,-460.0,0.00019726,2]
[370379289,1751987451097,-460.0,0.00019726,2]
[370379290,1751987451107,-460.0,0.00019726,2]
[370379291,1751987451116,-460.0,0.00019726,2]
[370379292,1751987451125,-460.0,0.00019726,2]
[370379293,1751987451134,-460.0,0.00019726,2]
[370379294,1751987451144,-460.0,0.00019726,2]
[370379295,1751987451153,-571.79,0.00019726,2]
[370379296,1751987451163,-460.0,0.00019726,2]
[370379297,1751987451173,-460.0,0.00019726,2]
[370379298,1751987451183,-460.0,0.00019726,2]
[370379299,1751987451193,-655.17,0.00019726,2]
[370379300,1751987451202,-460.0,0.00019726,2]
[370379301,1751987451211,-460.0,0.00019726,2]
[370379302,1751987451221,-460.0,0.00019726,2]
[370379303,1751987451231,-460.0,0.00019726,2]
[370379304,1751987451240,-460.0,0.00019726,2]
[370379305,1751987451251,-460.0,0.00019726,2]
[370379306,1751987451261,-460.0,0.00019726,2]
[370379307,1751987451270,-460.0,0.00019726,2]
[370379308,1751987451280,-460.0,0.00019726,2]
[370379309,1751987451289,-435.84632949,0.00019726,2]
[370379310,1751987451298,-460.0,0.00019726,2]
[370379311,1751987451307,-460.0,0.00019726,2]
[370379312,1751987451316,-460.0,0.00019726,2]
[370379313,1751987451325,-366.85642596,0.00019726,2]
[370379314,1751987451335,-460.0,0.00019726,2]
[370379315,1751987451344,-460.0,0.00019726,2]
[370379316,1751987451355,-460.0,0.00019726,2]
[370379317,1751987451365,-460.0,0.00019726,2]
[370379318,1751987451374,-460.0,0.00019726,2]
[370379319,1751987451383,-460.0,0.00019726,2]
[370379320,1751987451393,-460.0,0.00019726,2]
[370379321,1751987451403,-1068.61,0.00019726,2]
[370379322,1751987451412,-460.0,0.00019726,2]
[370379323,1751987451422,-460.0,0.00019726,2]
[370379324,1751987451432,-460.0,0.00019726,2]
[370379325,1751987451442,-460.0,0.00019726,2]
[370379326,1751987451451,-370.34897506,0.00019726,2]
[370379327,1751987451460,-460.0,0.00019726,2]
[370379328,1751987451469,-460.0,0.00019726,2]
[370379329,1751987451478,-990.47,0.00019726,2]
[370379330,1751987451488,-460.0,0.00019726,2]
[370379331,1751987451498,-460.0,0.00019726,2]
[370379332,1751987451507,-460.0,0.00019726,2]
[370379333,1751987451516,-460.0,0.00019726,2]
[370379334,1751987451526,-460.0,0.00019726,2]
[370379335,1751987451535,-460.0,0.00019726,2]
[370379336,1751987451545,-460.0,0.00019726,2]
[370379337,1751987451555,-460.0,0.00019726,2]
[370379338,1751987451564,-460.0,0.00019726,2]
[370379339,1751987451575,-529.08,0.00019726,2]
[370379340,1751987451585,-460.0,0.00019726,2]
[370379341,1751987451595,-460.0,0.00019726,2]
[370379342,1751987451605,-460.0,0.00019726,2]
[370379343,1751987451615,-463.66875312,0.00019726,2]
[370379344,1751987451625,-1094.43,0.00019726,2]
[370379345,1751987451634,-460.0,0.00019726,2]
[370379346,1751987451643,-460.0,0.00019726,2]
[370379347,1751987451658,-460.0,0.00019726,2]
[370379348,1751987451667,-460.0,0.00019726,2]
[370379349,1751987451677,-460.0,0.00019726,2]
[370379350,1751987451687,-460.0,0.00019726,2]
[370379351,1751987451697,-610.0,0.00019726,2]
[370379352,1751987451707,-460.0,0.00019726,2]
[370379353,1751987451717,-460.0,0.00019726,2]
[370379354,1751987451726,-460.0,0.00019726,2]
[370379355,1751987451736,-460.0,0.00019726,2]
[370379356,1751987451746,-460.0,0.00019726,2]
[370379357,1751987451756,-460.0,0.00019726,2]
[370379358,1751987451765,-465.61895847,0.00019726,2]
[370379359,1751987451776,-460.0,0.00019726,2]
[370379360,1751987451785,-460.0,0.00019726,2]
[370379361,1751987451795,-389.89938791,0.00019726,2]
[370379362,1751987451805,-702.73,0.00019726,2]
[370379363,1751987451815,-460.0,0.00019726,2]
[370379364,1751987451825,-460.0,0.00019726,2]
[370379365,1751987451835,-460.0,0.00019726,2]
[370379366,1751987451844,-460.0,0.00019726,2]
[370379367,1751987451855,-460.0,0.00019726,2]
[370379368,1751987451865,-460.0,0.00019726,2]
[370379369,1751987451876,-460.0,0.00019726,2]
[370379370,1751987451887,-559.36964392,0.00019726,2]
[370379371,1751987451896,-460.0,0.00019726,2]
[370379372,1751987451907,-460.0,0.00019726,2]
[370379373,1751987451917,-460.0,0.00019726,2]
[370379374,1751987451926,-460.0,0.00019726,2]
[370379375,1751987451936,-474.48766616,0.00019726,2]
[370379376,1751987451946,-2535.92,0.00019726,2]
[370379377,1751987451956,-460.0,0.00019726,2]
[370379378,1751987451965,-462.17247759,0.00019726,2]
[370379379,1751987451975,-1117.62,0.00019726,2]
[370379380,1751987451985,-460.0,0.00019726,2]
[370379381,1751987451995,-460.0,0.00019726,2]
[370379382,1751987452005,-460.0,0.00019726,2]
[370379383,1751987452014,-460.0,0.00019726,2]
[370379384,1751987452023,-460.0,0.00019726,2]
[370379385,1751987452033,-460.0,0.00019726,2]
[370379386,1751987452042,-460.0,0.00019726,2]
[370379387,1751987452052,-460.0,0.00019726,2]
[370379388,1751987452062,-467.43372384,0.00019726,2]
[370379389,1751987452072,-375.52209228,0.00019726,2]
[370379390,1751987452082,-460.0,0.00019726,2]
[370379391,1751987452092,-489.06,0.00019726,2]
[370379392,1751987452102,-638.54,0.00019726,2]
[370379393,1751987452111,-460.0,0.00019726,2]
[370379394,1751987452121,-192.89041772,0.00019726,2]
[370379395,1751987452131,-460.0,0.00019726,2]
[370379396,1751987452140,-460.0,0.00019726,2]
[370379397,1751987452150,-906.56,0.00019726,2]
[370379398,1751987452160,-6605.47,0.00019726,2]
[370379399,1751987452170,-460.0,0.00019726,2]
[370379400,1751987452186,-1836.51,0.00019726,2]
[370379401,1751987452196,-187.69660434,0.00019726,2]
[370379402,1751987452206,-3531.13,0.00019726,2]
[370379403,1751987452217,-460.0,0.00019726,2]
[370379404,1751987452227,-460.0,0.00019726,2]
[370379405,1751987452236,-769.53,0.00019726,2]
[370379406,1751987452247,-460.0,0.00019726,2]
[370379407,1751987452257,-460.0,0.00019726,2]
[370379408,1751987452266,-460.0,0.00019726,2]
[370379409,1751987452276,-4999.22,0.00019726,2]
[370379410,1751987452285,-445.90608744,0.00019726,2]
[370379411,1751987452295,-550.0,0.00019726,2]
[370379412,1751987452304,-1438.66,0.00019726,2]
[370379413,1751987452314,-460.0,0.00019726,2]
[370379414,1751987452323,-460.0,0.00019726,2]
[370379415,1751987452333,-460.0,0.00019726,2]
[370379416,1751987452342,-1029.02,0.00019726,2]
[370379417,1751987452353,-551.13,0.00019726,2]
[370379418,1751987452362,-3199.43,0.00019726,2]
[370379419,1751987452372,-460.0,0.00019726,2]
[370379420,1751987452381,-460.0,0.00019726,2]
[370379421,1751987452392,-460.0,0.00019726,2]
[370379422,1751987452401,-197.46680754,0.00019726,2]
[370379423,1751987452411,-1136.93,0.00019726,2]
[370379424,1751987452420,-500.0,0.00019726,2]
[370379425,1751987452430,-460.0,0.00019726,2]
[370379426,1751987452440,-430.79122447,0.00019726,2]
[370379427,1751987452450,-1227.68,0.00019726,2]
[370379428,1751987452459,-802.39,0.00019726,2]
[370379429,1751987452469,-460.0,0.00019726,2]
[370379430,1751987452478,-460.0,0.00019726,2]
[370379431,1751987452488,-2315.09,0.00019726,2]
[370379432,1751987452498,-460.0,0.00019726,2]
[370379433,1751987452508,-779.96,0.00019726,2]
[370379434,1751987452518,-460.0,0.00019726,2]
[370379435,1751987452527,-768.26,0.00019726,2]
[370379436,1751987452537,-460.0,0.00019726,2]
[370379437,1751987452547,-460.0,0.00019726,2]
[370379438,1751987452557,-1247.08,0.00019726,2]
[370379439,1751987452567,-814.03,0.00019726,2]
[370379440,1751987452577,-460.0,0.00019726,2]
[370379441,1751987452586,-1458.11,0.00019726,2]
[370379442,1751987452596,-460.0,0.00019726,2]
[370379443,1751987452606,-1873.14,0.00019726,2]
[370379444,1751987452615,-460.0,0.00019726,2]
[370379445,1751987452626,-216.26555427,0.00019726,2]
[370379446,1751987452635,-503.68,0.00019726,2]
[370379447,1751987452645,-460.0,0.00019726,2]
[370379448,1751987452654,-460.0,0.00019726,2]
[370379449,1751987452664,-460.0,0.00019726,2]
[370379450,1751987452673,-464.46852934,0.00019726,2]
[370379451,1751987452683,-510.97,0.00019726,2]
[370379452,1751987452692,-460.0,0.00019726,2]
[370379453,1751987452702,-460.0,0.00019726,2]
[370379454,1751987452711,-460.0,0.00019726,2]
[370379455,1751987452721,-1198.65,0.00019726,2]
[370379456,1751987452733,-460.0,0.00019726,2]
[370379457,1751987452745,-460.0,0.00019726,2]
[370379458,1751987452754,-460.0,0.00019726,2]
[370379459,1751987452764,-485.36,0.00019726,2]
[370379460,1751987452774,-3642.47,0.00019726,2]
[370379461,1751987452783,-460.0,0.00019726,2]
[370379462,1751987452793,-460.0,0.00019726,2]
[370379463,1751987452803,-3488.24,0.00019726,2]
[370379464,1751987452812,-460.0,0.00019726,2]
[370379465,1751987452822,-881.6,0.00019726,2]
[370379466,1751987452832,-460.0,0.00019726,2]
[370379467,1751987452841,-1190.04,0.00019726,2]
[370379468,1751987452852,-5308.08,0.00019726,2]
[370379469,1751987452861,-858.29,0.00019726,2]
[370379470,1751987452871,-469.10159919,0.00019726,2]
[370379471,1751987452882,-460.0,0.00019726,2]
[370379472,1751987452891,-460.0,0.00019726,2]
[370379473,1751987452901,-580.0,0.00019726,2]
[370379474,1751987452911,-460.0,0.00019726,2]
[370379475,1751987452920,-460.0,0.00019726,2]
[370379476,1751987452930,-693.69,0.00019726,2]
[370379477,1751987452939,-889.03,0.00019726,2]
[370379478,1751987452949,-911.11,0.00019726,2]
[370379479,1751987452958,-460.0,0.00019726,2]
[370379480,1751987452969,-460.0,0.00019726,2]
[370379481,1751987452978,-460.0,0.00019726,2]
[370379482,1751987452988,-849.52,0.00019726,2]
[370379483,1751987452997,-512.35,0.00019726,2]
[370379484,1751987453007,-460.0,0.00019726,2]
[370379485,1751987453016,-1608.55,0.00019726,2]
[370379486,1751987453026,-1680.8,0.00019726,2]
[370379487,1751987453035,-3263.91,0.00019726,2]
[370379488,1751987453044,-201.03521453,0.00019726,2]
[370379489,1751987453054,-460.0,0.00019726,2]
[370379490,1751987453064,-460.0,0.00019726,2]
[370379491,1751987453073,-825.63,0.00019726,2]
[370379492,1751987453083,-460.0,0.00019726,2]
[370379493,1751987453092,-1917.38,0.00019726,2]
[370379494,1751987453103,-460.0,0.00019726,2]
[370379495,1751987453114,-460.0,0.00019726,2]
[370379496,1751987453123,-159.7894581,0.00019726,2]
[370379497,1751987453133,-460.0,0.00019726,2]
[370379498,1751987453142,-460.0,0.00019726,2]
[370379499,1751987453152,-1349.37,0.00019726,2]
[370379500,1751987453162,-460.0,0.00019726,2]
[370379501,1751987453172,-7169.81,0.00019726,2]
[370379502,1751987453187,-460.0,0.00019726,2]
[370379503,1751987453197,-460.0,0.00019726,2]
[370379504,1751987453208,-3212.24,0.00019726,2]
[370379505,1751987453219,-764.25,0.00019726,2]
[370379506,1751987453229,-460.0,0.00019726,2]
[370379507,1751987453239,-460.0,0.00019726,2]
[370379508,1751987453249,-460.0,0.00019726,2]
[370379509,1751987453259,-975.12,0.00019726,2]
[370379510,1751987453270,-460.0,0.00019726,2]
[370379511,1751987453280,-460.0,0.00019726,2]
[370379512,1751987453290,-3732.02,0.00019726,2]
[370379513,1751987453299,-460.0,0.00019726,2]
[370379514,1751987453309,-517.2,0.00019726,2]
[370379515,1751987453318,-1124.04,0.00019726,2]
[370379516,1751987453328,-460.0,0.00019726,2]
[370379517,1751987453337,-460.0,0.00019726,2]
[370379518,1751987453348,-150.0,0.00019746,2]
[370379519,1751987453358,-154.51746456,0.00019773,2]
[370379520,1751987453367,-500.0,0.00019773,2]
[370379521,1751987453376,-151.0,0.000198,2]
[370379522,1751987453386,-151.0,0.000198,2]
[370379523,1751987453395,-500.0,0.00019868,2]
[370379524,1751987453405,-151.0,0.000199,2]
[370379525,1751987453415,-151.0,0.000199,2]
[370379526,1751987453424,-3853.49006089,0.000199,2]
[370379527,1751987453434,-10838.73568554,0.000199,2]
[370379528,1751987453443,-500.0,0.00019963,2]
[370379529,1751987453453,-1500.0,0.00019968,2]
[370379530,1751987453462,-657482.73986,0.00019999,2]
[370379531,1751987453472,-460.0,0.0002,2]
[370379532,1751987453481,-460.0,0.0002,2]
[370379533,1751987453491,-187.0,0.0002,2]
[370379534,1751987453500,-193.8,0.0002,2]
[370379535,1751987453510,-460.0,0.0002,2]
[370379536,1751987453520,-151.0,0.0002,3]
[370379537,1751987453529,-460.0,0.0002,2]
[370379538,1751987453539,-520.37,0.0002,2]
[370379539,1751987453549,-356.03,0.0002,2]
[370379540,1751987453558,-460.0,0.0002,2]
[370379541,1751987453568,-460.0,0.0002,2]
[370379542,1751987453577,-520.83757941,0.0002,2]
[370379543,1751987453587,-460.0,0.0002,2]
[370379544,1751987453598,-460.0,0.0002,2]
[370379545,1751987453608,-460.0,0.0002,2]
[370379546,1751987453618,-644.05,0.0002,2]
[370379547,1751987453628,-460.0,0.0002,2]
[370379548,1751987453637,-460.0,0.0002,2]
[370379549,1751987453649,-460.0,0.0002,2]
[370379550,1751987453658,-460.0,0.0002,2]
[370379551,1751987453668,-460.0,0.0002,2]
[370379552,1751987453678,-460.0,0.0002,2]
[370379553,1751987453836,-248.33072872,0.0002,2]
[370379554,1751987453864,-460.0,0.0002,2]
[370379555,1751987453875,-460.0,0.0002,2]
[370379556,1751987453886,-460.0,0.0002,2]
[370379557,1751987453897,-460.0,0.0002,2]
[370379558,1751987453907,-460.0,0.0002,2]
[370379559,1751987453918,-460.0,0.0002,2]
[370379560,1751987453928,-590.3,0.0002,2]
[370379561,1751987453939,-460.0,0.0002,2]
[370379562,1751987453949,-460.0,0.0002,2]
[370379563,1751987453960,-460.0,0.0002,2]
[370379564,1751987453970,-460.0,0.0002,2]
[370379565,1751987453981,-460.0,0.0002,2]
[370379566,1751987453991,-460.0,0.0002,2]
[370379567,1751987454001,-460.0,0.0002,2]
[370379568,1751987454010,-460.0,0.0002,2]
[370379569,1751987454020,-460.0,0.0002,2]
[370379570,1751987454030,-460.0,0.0002,2]
[370379571,1751987454040,-460.0,0.0002,2]
[370379572,1751987454050,-550.27596026,0.0002,2]
[370379573,1751987454059,-460.0,0.0002,2]
[370379574,1751987454069,-372.59250816,0.0002,2]
[370379575,1751987454078,-460.0,0.0002,2]
[370379576,1751987454088,-460.0,0.0002,2]
[370379577,1751987454099,-460.0,0.0002,2]
[370379578,1751987454108,-571.79,0.0002,2]
[370379579,1751987454118,-460.0,0.0002,2]
[370379580,1751987454127,-460.0,0.0002,2]
[370379581,1751987454137,-460.0,0.0002,2]
[370379582,1751987454146,-655.17,0.0002,2]
[370379583,1751987454156,-460.0,0.0002,2]
[370379584,1751987454165,-460.0,0.0002,2]
[370379585,1751987454178,-460.0,0.0002,2]
[370379586,1751987454187,-460.0,0.0002,2]
[370379587,1751987454197,-460.0,0.0002,2]
[370379588,1751987454206,-460.0,0.0002,2]
[370379589,1751987454216,-460.0,0.0002,2]
[370379590,1751987454225,-460.0,0.0002,2]
[370379591,1751987454233,-460.0,0.0002,2]
[370379592,1751987454243,-460.0,0.0002,2]
[370379593,1751987454254,-460.0,0.0002,2]
[370379594,1751987454264,-460.0,0.0002,2]
[370379595,1751987454274,-460.0,0.0002,2]
[370379596,1751987454283,-460.0,0.0002,2]
[370379597,1751987454292,-471.77029986,0.0002,2]
[370379598,1751987454302,-460.0,0.0002,2]
[370379599,1751987454312,-460.0,0.0002,2]
[370379600,1751987454321,-1068.61,0.0002,2]
[370379601,1751987454331,-460.0,0.0002,2]
[370379602,1751987454341,-460.0,0.0002,2]
[370379603,1751987454351,-460.0,0.0002,2]
[370379604,1751987454360,-460.0,0.0002,2]
[370379605,1751987454370,-460.0,0.0002,2]
[370379606,1751987454379,-990.47,0.0002,2]
[370379607,1751987454389,-460.0,0.0002,2]
[370379608,1751987454398,-460.0,0.0002,2]
[370379609,1751987454408,-460.0,0.0002,2]
[370379610,1751987454417,-444.42656015,0.0002,2]
[370379611,1751987454426,-460.0,0.0002,2]
[370379612,1751987454436,-460.0,0.0002,2]
[370379613,1751987454445,-460.0,0.0002,2]
[370379614,1751987454455,-460.0,0.0002,2]
[370379615,1751987454465,-529.08,0.0002,2]
[370379616,1751987454475,-460.0,0.0002,2]
[370379617,1751987454484,-460.0,0.0002,2]
[370379618,1751987454493,-460.0,0.0002,2]